bitfinex/quotes_BTCUSD_20251104
["timestamp","ask_amount","ask_price","bid_price","bid_amount"]
[1762293247370,0.00034561,99510.0,99497.0,0.05986]
[1762293247581,0.00034561,99510.0,99502.0,0.08536322]
[1762293247809,0.00034561,99510.0,99508.0,0.20098803]
[1762293248032,0.00034561,99510.0,99508.0,0.20098756]
[1762293248239,0.00034561,99510.0,99509.0,0.10273426]
[1762293248440,0.00034561,99510.0,99505.0,0.01997567]
[1762293248646,0.20101108,99497.0,99496.0,8e-05]
[1762293248847,0.20101108,99497.0,99496.0,0.00012]
[1762293249248,2.20101108,99497.0,99496.0,0.00012]
[1762293249447,2.20101108,99497.0,99496.0,0.00016]
[1762293249705,0.00134561,99510.0,99496.0,0.00016]
[1762293249910,0.20100829,99499.0,99496.0,0.00016]
[1762293250117,0.34,99502.0,99496.0,0.01016]
[1762293250287,0.34,99505.0,99496.0,0.01016]
[1762293250432,0.34,99503.0,99496.0,0.01016]
[1762293250645,0.00034561,99510.0,99496.0,0.01016]
[1762293250840,0.00327049,99497.0,99496.0,0.01016]
[1762293251264,0.00327049,99497.0,99496.0,0.00016]
[1762293251464,0.22470839,99497.0,99496.0,0.00016]
[1762293251748,0.20428157,99497.0,99496.0,0.00716]
[1762293251966,0.20428157,99497.0,99496.0,0.00016]
[1762293252304,0.20528157,99497.0,99496.0,0.01316]
[1762293252510,0.20428157,99497.0,99496.0,0.00016]
[1762293252912,0.20428157,99497.0,99496.0,0.00916]
[1762293253135,0.20428157,99497.0,99496.0,0.00016]
[1762293253800,0.54428157,99497.0,99496.0,0.00016]
[1762293254254,2.54428157,99497.0,99496.0,0.00016]
[1762293254456,2.54428157,99497.0,99496.0,0.00916]
[1762293254857,2.54428157,99497.0,99496.0,0.00016]
[1762293255074,2.54428157,99497.0,99496.0,0.00916]
[1762293255496,2.54428157,99497.0,99496.0,0.00016]
[1762293255497,0.00327049,99497.0,99496.0,0.00016]
[1762293255695,0.00327049,99497.0,99496.0,0.00616]
[1762293255918,0.00327049,99497.0,99496.0,0.06701]
[1762293256128,0.00327049,99497.0,99496.0,0.2680231]
[1762293256342,0.00327049,99497.0,99496.0,0.30420538]
[1762293256465,0.00327049,99497.0,99496.0,0.24335538]
[1762293256890,0.00327049,99497.0,99496.0,0.58335538]
[1762293257474,0.00327049,99497.0,99496.0,0.57735538]
[1762293257673,0.00327049,99497.0,99496.0,0.58735538]
[1762293257952,0.00327049,99497.0,99496.0,0.38634228]
[1762293258168,0.00327049,99497.0,99496.0,0.09719228]
[1762293258346,0.00327049,99497.0,99496.0,0.01416]
[1762293258545,0.00427049,99497.0,99496.0,0.01416]
[1762293259202,0.00427049,99497.0,99496.0,0.00016]
[1762293259377,0.00327049,99497.0,99496.0,0.00016]
[1762293260669,0.00427049,99497.0,99496.0,0.01616]
[1762293261070,0.00327049,99497.0,99496.0,0.00016]
[1762293261248,2.00327049,99497.0,99496.0,0.00016]
[1762293261457,2.34327049,99497.0,99496.0,0.00016]
[1762293261871,2.34427049,99497.0,99496.0,0.01216]
[1762293262073,2.34327049,99497.0,99496.0,0.00016]
[1762293262429,2.34327049,99497.0,99496.0,0.00916]
[1762293262635,0.34327049,99497.0,99496.0,0.00916]
[1762293263036,0.34214725,99497.0,99496.0,0.00916]
[1762293263436,0.34214725,99497.0,99496.0,0.00016]
[1762293263996,0.34314725,99497.0,99496.0,0.01216]
[1762293264253,0.00214725,99497.0,99496.0,0.00016]
[1762293264622,0.00214725,99497.0,99496.0,0.00816]
[1762293264845,0.00214725,99497.0,99496.0,0.00016]
[1762293265245,0.00314725,99497.0,99496.0,0.01216]
[1762293265449,0.00214725,99497.0,99496.0,0.00016]
[1762293266718,0.00314725,99497.0,99496.0,0.01116]
[1762293266953,0.00214725,99497.0,99496.0,0.00016]
[1762293267178,0.00214725,99497.0,99496.0,0.10549889]
[1762293267370,0.00314725,99497.0,99496.0,0.11749889]
[1762293267727,0.00214725,99497.0,99496.0,0.14304361]
[1762293267870,0.00314725,99497.0,99496.0,0.15504361]
[1762293268065,0.00314725,99497.0,99496.0,0.15368117]
[1762293268266,0.00214725,99497.0,99496.0,0.02013567]
[1762293268467,0.00214725,99497.0,99496.0,0.00016]
[1762293268665,0.00314725,99497.0,99496.0,0.01216]
[1762293268866,0.34314725,99497.0,99496.0,0.01216]
[1762293269706,0.00214725,99497.0,99496.0,0.00016]
[1762293270611,0.00214725,99497.0,99496.0,0.00816]
[1762293270796,0.00214725,99497.0,99496.0,0.00016]
[1762293270997,0.00214725,99497.0,99496.0,0.2011731]
[1762293271224,0.00314725,99497.0,99496.0,0.01016]
[1762293271420,0.00314725,99497.0,99496.0,0.00016]
[1762293271639,0.00214725,99497.0,99496.0,0.00016]
[1762293272708,0.00214725,99497.0,99496.0,0.2011731]
[1762293272908,0.00314725,99497.0,99496.0,0.2141731]
[1762293273151,0.00314725,99497.0,99496.0,0.23735538]
[1762293273152,0.00214725,99497.0,99496.0,0.23735538]
[1762293273558,0.00314725,99497.0,99496.0,0.25035538]
[1762293274804,0.00214725,99497.0,99496.0,0.09431228]
[1762293275008,0.00214725,99497.0,99496.0,0.03634228]
[1762293276070,0.00214725,99497.0,99496.0,0.04534228]
[1762293276283,0.00214725,99497.0,99496.0,0.03634228]
[1762293276692,0.00214725,99497.0,99496.0,0.04834228]
[1762293277016,0.00214725,99497.0,99496.0,0.2131731]
[1762293277344,0.00214725,99497.0,99496.0,0.24935538]
[1762293277962,0.00214725,99497.0,99496.0,0.01216]
[1762293279016,0.00214725,99497.0,99496.0,0.00016]
[1762293279419,0.00214725,99497.0,99496.0,0.00716]
[1762293279623,0.00214725,99497.0,99496.0,0.00016]
[1762293279831,0.20315833,99497.0,99496.0,0.00016]
[1762293280029,0.20315833,99497.0,99496.0,0.00616]
[1762293280230,0.20315833,99497.0,99496.0,0.00016]
[1762293280433,0.20315833,99497.0,99496.0,0.0002]
[1762293280657,0.20315833,99497.0,99496.0,0.0062]
[1762293281323,0.00214725,99497.0,99496.0,0.0002]
[1762293282583,0.00214725,99497.0,99496.0,0.0062]
[1762293282986,0.00214725,99497.0,99496.0,0.0002]
[1762293283191,0.00214725,99497.0,99496.0,0.0062]
[1762293283759,0.03772818,99497.0,99496.0,0.0062]
[1762293284132,0.00214725,99497.0,99496.0,0.0062]
[1762293284958,0.00214725,99497.0,99496.0,0.2072131]
[1762293285157,0.00214725,99497.0,99496.0,0.24339538]
[1762293286397,0.00214725,99497.0,99496.0,0.23739538]
[1762293286799,0.00214725,99497.0,99496.0,0.24539538]
[1762293287698,0.00214725,99497.0,99496.0,0.04438228]
[1762293287922,0.20315833,99497.0,99496.0,0.0082]
[1762293289525,0.00214725,99497.0,99496.0,0.0082]
[1762293289733,0.20315833,99497.0,99496.0,0.0082]
[1762293290047,0.20315833,99497.0,99496.0,0.0002]
[1762293290397,0.20315833,99497.0,99496.0,0.0032]
[1762293293364,0.65088204,99506.0,99496.0,0.0032]
[1762293293365,0.01044016,99600.0,99496.0,0.0032]
[1762293293538,0.23028534,99582.0,99540.0,0.00999999]
[1762293293754,0.00920083,99564.0,99556.0,0.02977]
[1762293293961,0.00014552,99565.0,99560.0,0.00018733]
[1762293294161,2.2008859,99559.0,99558.0,0.04139892]
[1762293294358,2.2008859,99559.0,99540.0,0.07634105]
[1762293294359,2.0,99560.0,99541.0,0.00759029]
[1762293294573,0.20090406,99550.0,99540.0,0.00018733]
[1762293294783,2.0,99554.0,99541.0,0.05988]
[1762293294982,0.20101957,99565.0,99550.0,0.00018733]
[1762293294983,2.0,99564.0,99550.0,0.00018733]
[1762293295193,0.00014552,99565.0,99560.0,0.00018733]
[1762293295394,0.00014552,99565.0,99564.0,0.20087581]
[1762293295847,0.00014552,99565.0,99561.0,0.20088187]
[1762293295848,0.00014552,99565.0,99562.0,0.05988]
[1762293296019,0.00014552,99565.0,99562.0,0.26075948]
[1762293296417,0.00014552,99565.0,99562.0,0.05988]
[1762293296616,0.20088187,99561.0,99560.0,0.00018733]
[1762293296862,0.20102008,99565.0,99560.0,0.00018733]
[1762293297115,0.20102008,99565.0,99562.0,0.004]
[1762293297931,0.00014552,99565.0,99562.0,0.004]
[1762293298150,0.00014552,99565.0,99563.0,0.26075783]
[1762293298559,0.00014552,99565.0,99564.0,0.05988]
[1762293299001,0.34,99595.0,99564.0,0.05988]
[1762293299210,0.34,99595.0,99593.0,0.20081642]
[1762293299211,0.00014544,99595.0,99593.0,0.20081642]
[1762293299409,0.37333594,99639.0,99593.0,0.20081642]
[1762293299410,0.0002,99640.0,99630.0,0.00018733]
[1762293299623,0.00034544,99640.0,99630.0,0.00018733]
[1762293299827,0.20072461,99639.0,99630.0,0.00018733]
[1762293300033,0.00344394,99631.0,99630.0,0.00018733]
[1762293300235,0.00344394,99631.0,99627.0,0.03618228]
[1762293300441,0.00034544,99640.0,99627.0,0.03618228]
[1762293300596,0.65122748,99640.0,99630.0,0.00018733]
[1762293300816,0.20072461,99639.0,99630.0,0.00018733]
[1762293301008,0.65122748,99640.0,99626.0,0.01537]
[1762293301009,0.00344394,99631.0,99626.0,0.01537]
[1762293301215,0.00034544,99640.0,99631.0,0.03618228]
[1762293301434,0.00034544,99640.0,99639.0,0.03618228]
[1762293301900,0.00034544,99640.0,99631.0,0.05988]
[1762293302105,0.00034544,99640.0,99635.0,0.03618228]
[1762293302310,0.00034544,99640.0,99634.0,0.08536322]
[1762293302311,0.00034544,99640.0,99638.0,0.03618228]
[1762293302516,0.00034544,99640.0,99639.0,0.01014622]
[1762293302758,0.00034544,99640.0,99639.0,0.12618417]
[1762293302975,0.00034544,99640.0,99639.0,0.40630417]
[1762293303186,0.00034544,99640.0,99639.0,0.39615795]
[1762293303860,0.65108204,99680.0,99664.0,0.03618228]
[1762293304076,0.65108204,99680.0,99666.0,0.03618228]
[1762293304077,0.00057462,99670.0,99666.0,0.03618228]
[1762293304288,0.00057462,99670.0,99668.0,0.03618228]
[1762293304502,0.00057462,99670.0,99660.0,0.00018733]
[1762293304746,0.00057462,99670.0,99648.0,0.01997567]
[1762293304747,0.02069792,99670.0,99651.0,0.03618228]
[1762293304952,0.00057462,99670.0,99660.0,0.00018733]
[1762293305183,0.2006749,99664.0,99650.0,0.03636961]
[1762293305406,0.00057462,99670.0,99650.0,0.00018733]
[1762293305613,0.65145666,99670.0,99660.0,0.00018733]
[1762293305818,0.20067366,99665.0,99660.0,0.00018733]
[1762293306032,0.65145666,99670.0,99660.0,0.00018733]
[1762293306033,0.20066621,99668.0,99660.0,0.00018733]
[1762293306237,0.65145666,99670.0,99660.0,0.00018733]
[1762293306238,0.00057462,99670.0,99660.0,0.00018733]
[1762293306463,0.20066419,99669.0,99660.0,0.04951833]
[1762293306878,0.00421369,99661.0,99660.0,0.04951833]
[1762293307310,0.00421369,99661.0,99651.0,0.03618228]
[1762293307519,0.65145666,99670.0,99653.0,0.03618228]
[1762293307738,0.65145666,99670.0,99660.0,0.00018733]
[1762293307980,0.65145666,99670.0,99661.0,0.21928279]
[1762293308170,0.65145666,99670.0,99668.0,0.20066469]
[1762293308171,0.00057462,99670.0,99668.0,0.20066469]
[1762293308370,0.00057462,99670.0,99669.0,0.06385344]
[1762293308600,0.00057462,99670.0,99666.0,0.03618228]
[1762293308772,0.00057462,99670.0,99668.0,0.03618228]
[1762293308999,0.00057462,99670.0,99669.0,0.05988]
[1762293309180,0.00057462,99670.0,99669.0,0.29672647]
[1762293309388,0.00501915,99670.0,99669.0,0.31524958]
[1762293309588,0.00501915,99670.0,99669.0,0.25536976]
[1762293309793,0.00501915,99670.0,99669.0,0.05470557]
[1762293309994,0.00501915,99670.0,99669.0,0.03618228]
[1762293310205,0.00501915,99670.0,99663.0,0.02977]
[1762293310410,0.20067426,99664.0,99663.0,0.02977]
[1762293310627,0.2006803,99661.0,99660.0,0.00016]
[1762293310832,0.2006803,99661.0,99660.0,0.0002]
[1762293311257,0.2006803,99661.0,99660.0,0.00024]
[1762293311460,0.05023114,99748.0,99660.0,0.00024]
[1762293311461,0.0002,99680.0,99660.0,0.00024]
[1762293311636,0.02842,99707.0,99690.0,0.00018733]
[1762293311785,0.00014538,99707.0,99700.0,0.00018733]
[1762293311983,0.00014538,99707.0,99690.0,0.03618228]
[1762293311984,0.05488,99732.0,99710.0,0.00018733]
[1762293312184,0.02842,99735.0,99720.0,0.00018733]
[1762293312185,2.0,99728.0,99720.0,0.00018733]
[1762293312429,0.20055956,99721.0,99720.0,0.00014538]
[1762293312604,2.0,99723.0,99720.0,0.00014538]
[1762293312965,0.20055956,99721.0,99720.0,0.00014538]
[1762293313765,2.0,99728.0,99720.0,0.00014538]
[1762293313896,0.20055352,99724.0,99720.0,0.00014538]
[1762293314119,0.66275116,99730.0,99720.0,0.00014538]
[1762293314120,0.05488,99749.0,99720.0,0.00033271]
[1762293314334,0.2005253,99739.0,99720.0,0.04966371]
[1762293314534,0.20054347,99729.0,99720.0,0.00033271]
[1762293314759,0.20052624,99738.0,99720.0,0.00033271]
[1762293314960,0.0002,99740.0,99730.0,0.00018733]
[1762293314961,0.65108204,99740.0,99730.0,0.00018733]
[1762293315161,0.0002,99740.0,99730.0,0.00018733]
[1762293315568,0.0002,99740.0,99736.0,0.20052805]
[1762293315822,0.0002,99740.0,99737.0,0.03618228]
[1762293316407,0.0002,99760.0,99750.0,0.00018733]
[1762293316634,2.0,99759.0,99750.0,0.00018733]
[1762293316837,0.0002,99760.0,99748.0,0.20050495]
[1762293316838,0.00652019,99751.0,99748.0,0.20050495]
[1762293316988,0.0002,99760.0,99750.0,0.049331]
[1762293317187,0.0002,99760.0,99756.0,0.20048887]
[1762293317389,0.0002,99760.0,99750.0,0.04951833]
[1762293317593,0.00034533,99760.0,99750.0,0.04951833]
[1762293317935,0.00034533,99760.0,99750.0,0.00018733]
[1762293317936,0.20048316,99759.0,99750.0,0.00018733]
[1762293318141,0.00034533,99760.0,99750.0,0.00018733]
[1762293318318,0.20049506,99754.0,99740.0,0.00018733]
[1762293318523,0.00034533,99760.0,99740.0,0.00018733]
[1762293318750,0.20048316,99759.0,99750.0,0.002]
[1762293318959,0.00034533,99760.0,99750.0,0.00018733]
[1762293319164,0.20048316,99759.0,99750.0,0.00218733]
[1762293319370,0.20049686,99753.0,99750.0,0.002]
[1762293319570,0.20048316,99759.0,99750.0,0.00018733]
[1762293319774,0.00034533,99760.0,99751.0,0.08536322]
[1762293320008,0.00034533,99760.0,99751.0,0.01997567]
[1762293320217,0.20049611,99753.0,99750.0,0.00018733]
[1762293320432,0.05488,99759.0,99750.0,0.00018733]
[1762293320638,0.00034533,99760.0,99755.0,0.20048972]
[1762293320840,0.00034533,99760.0,99756.0,0.20048789]
[1762293321044,0.00034533,99760.0,99750.0,0.04951833]
[1762293321248,0.00034533,99760.0,99752.0,0.08536322]
[1762293321866,0.00034533,99760.0,99750.0,0.04951833]
[1762293322294,0.00034533,99760.0,99751.0,0.20049924]
[1762293322499,0.00034533,99760.0,99750.0,0.04951833]
[1762293322706,0.00654579,99752.0,99750.0,0.00418733]
[1762293322907,0.00034533,99760.0,99749.0,0.01997567]
[1762293323110,0.00034533,99760.0,99750.0,0.04951833]
[1762293323940,0.00034533,99760.0,99750.0,0.00018733]
[1762293324152,0.00034533,99760.0,99750.0,0.04951833]
[1762293324550,0.20049468,99754.0,99751.0,0.005]
[1762293324751,0.20082849,99760.0,99740.0,0.04951833]
[1762293325037,0.20049924,99751.0,99750.0,0.004]
[1762293325469,0.20049559,99753.0,99750.0,0.004]
[1762293325470,0.17700619,99753.0,99750.0,0.004]
[1762293325678,0.20049924,99751.0,99750.0,0.004]
[1762293325883,0.05488,99759.0,99740.0,0.00018733]
[1762293326101,0.01036938,99760.0,99731.0,0.01997567]
[1762293326102,0.01036938,99760.0,99750.0,0.005]
[1762293326308,0.01036938,99760.0,99750.0,0.00518733]
[1762293326525,0.0002,99770.0,99752.0,0.08536322]
[1762293326741,0.00068414,99770.0,99767.0,0.20046662]
[1762293326952,0.00068414,99770.0,99769.0,0.20046306]
[1762293327160,0.00068414,99770.0,99768.0,0.23664669]
[1762293327418,0.00068414,99770.0,99769.0,0.37618228]
[1762293328049,0.0002,99790.0,99786.0,0.2004282]
[1762293328257,0.00034516,99790.0,99789.0,0.20042289]
[1762293328488,0.01021702,99830.0,99804.0,0.20039276]
[1762293328716,0.20035319,99824.0,99820.0,0.04951833]
[1762293328917,0.20036867,99816.0,99815.0,0.01997567]
[1762293329141,0.00014516,99824.0,99816.0,0.20036867]
[1762293329360,0.03009001,99823.0,99815.0,0.01997567]
[1762293329568,0.00014516,99824.0,99822.0,0.08536322]
[1762293330199,0.00010003,99824.0,99823.0,0.37618228]
[1762293330629,0.0002,99840.0,99839.0,0.23650479]
[1762293330835,0.0002,99840.0,99839.0,0.25648046]
[1762293331041,0.0002,99870.0,99839.0,0.05615795]
[1762293331274,0.0004,99900.0,99880.0,0.00018733]
[1762293331477,0.0004,99930.0,99910.0,0.00018733]
[1762293331707,0.00088387,99930.0,99920.0,0.00018733]
[1762293331923,0.20017815,99911.0,99910.0,0.00018733]
[1762293332130,0.2001441,99928.0,99910.0,0.00018733]
[1762293332336,0.20015812,99921.0,99920.0,0.00018733]
[1762293332543,0.03006441,99929.0,99920.0,0.00018733]
[1762293332751,0.20015812,99921.0,99910.0,0.00018733]
[1762293332966,0.20017784,99912.0,99900.0,0.04951833]
[1762293333167,0.20018534,99908.0,99900.0,0.04951833]
[1762293333389,0.010009,99910.0,99880.0,0.00018733]
[1762293333598,0.20021823,99891.0,99890.0,0.00018733]
[1762293333775,0.20025257,99874.0,99870.0,0.049331]
[1762293334006,0.01001001,99900.0,99880.0,0.00018733]
[1762293334007,0.20021823,99891.0,99880.0,0.00018733]
[1762293334211,1.11808872,99930.0,99890.0,0.00018733]
[1762293334212,0.20016218,99919.0,99890.0,0.00018733]
[1762293334418,0.03618228,99914.0,99900.0,0.049331]
[1762293334615,0.20017213,99915.0,99894.0,0.01997567]
[1762293334944,0.01035511,99901.0,99900.0,0.049331]
[1762293335606,0.20021022,99895.0,99890.0,0.04951833]
[1762293335814,0.20017332,99914.0,99900.0,0.00018733]
[1762293335954,0.20021133,99895.0,99890.0,0.00018733]
[1762293336155,0.00048387,99915.0,99910.0,0.00018733]
[1762293336973,0.00048387,99915.0,99910.0,0.04951833]
[1762293337175,0.20017214,99914.0,99910.0,0.04951833]
[1762293337386,0.00048387,99915.0,99910.0,0.00018733]
[1762293338294,0.00048387,99915.0,99901.0,0.0843]
[1762293338295,0.20019619,99902.0,99901.0,0.0843]
[1762293338514,0.00048387,99915.0,99910.0,0.00018733]
[1762293339128,0.00048387,99915.0,99910.0,0.04951833]
[1762293339264,0.20018968,99906.0,99904.0,0.01997567]
[1762293339470,0.20019619,99902.0,99901.0,0.0843]
[1762293339677,0.00048387,99915.0,99910.0,0.00018733]
[1762293339890,0.20017423,99913.0,99910.0,0.00018733]
[1762293340117,0.00048387,99915.0,99913.0,0.34]
[1762293340321,9e-05,99940.0,99930.0,0.049331]
[1762293340526,0.00023507,99940.0,99930.0,0.069494]
[1762293340904,0.00023507,99940.0,99931.0,0.20013809]
[1762293341108,0.00023507,99940.0,99930.0,0.069494]
[1762293341513,0.01112071,99931.0,99930.0,0.020163]
[1762293341785,0.01112071,99931.0,99930.0,0.01997567]
[1762293341994,0.01112071,99931.0,99930.0,0.06930667]
[1762293342150,0.01112071,99931.0,99910.0,0.00018733]
[1762293342352,2.0,99929.0,99903.0,0.01997567]
[1762293342548,0.20017815,99911.0,99900.0,0.00018733]
[1762293342782,0.20017815,99911.0,99890.0,0.00018733]
[1762293342783,0.20019619,99902.0,99890.0,0.00018733]
[1762293343162,0.20018632,99907.0,99890.0,0.00018733]
[1762293343361,0.02948,99921.0,99890.0,0.069494]
[1762293343561,0.20019619,99902.0,99890.0,0.020163]
[1762293343865,0.20019619,99902.0,99890.0,0.00018733]
[1762293343866,0.20034118,99902.0,99890.0,0.00018733]
[1762293344065,2.20034118,99902.0,99880.0,0.00018733]
[1762293344769,2.20034118,99902.0,99865.0,0.01997567]
[1762293344770,0.20034118,99902.0,99890.0,0.00018733]
[1762293344978,0.20021823,99891.0,99890.0,0.00018733]
[1762293345181,0.00014499,99902.0,99890.0,0.01997567]
[1762293345561,0.00014499,99902.0,99890.0,0.020163]
[1762293345966,0.06274499,99902.0,99890.0,0.00018733]
[1762293346172,0.00014499,99902.0,99890.0,0.00018733]
[1762293346595,0.00014499,99902.0,99901.0,0.34]
[1762293346805,9e-05,99940.0,99930.0,0.00018733]
[1762293347029,0.00023496,99940.0,99930.0,0.00018733]
[1762293347232,0.00023496,99940.0,99939.0,0.20012207]
[1762293347385,0.00023496,99940.0,99939.0,0.01997567]
[1762293347998,0.00023496,99940.0,99939.0,0.22009774]
[1762293348203,0.00023496,99940.0,99939.0,0.01997567]
[1762293348553,0.01158526,99940.0,99939.0,0.56009774]
[1762293348686,0.01158526,99940.0,99939.0,0.35997567]
[1762293349645,0.01158526,99940.0,99939.0,0.39615795]
[1762293349846,0.0002,99960.0,99957.0,0.20008537]
[1762293349979,0.0002,99960.0,99957.0,0.22006104]
[1762293350219,0.0002,99960.0,99957.0,0.01997567]
[1762293350620,0.0002,99960.0,99950.0,0.04951833]
[1762293351237,0.0002,99960.0,99958.0,0.34]
[1762293351441,10.2000009,100000.0,99990.0,0.00018733]
[1762293351655,10.00014499,100000.0,99990.0,0.00018733]
[1762293351867,10.00014499,100000.0,99990.0,0.04951833]
[1762293352090,10.00014499,100000.0,99998.0,0.20000378]
[1762293352298,10.00014499,100000.0,99999.0,0.42536322]
[1762293352299,9.97680499,100000.0,99999.0,0.42536322]
[1762293352504,8.51760499,100000.0,99999.0,0.4615455]
[1762293352714,8.51760499,100000.0,99999.0,0.42536322]
[1762293352919,8.51760499,100000.0,99999.0,0.08536322]
[1762293353457,8.51760499,100000.0,99998.0,0.01997567]
[1762293353458,8.71760499,100000.0,99998.0,0.01997567]
[1762293353662,8.71760499,100000.0,99990.0,0.049331]
[1762293353663,8.51760499,100000.0,99990.0,0.049331]
[1762293353868,8.51760499,100000.0,99990.0,0.04951833]
[1762293354311,0.200018,99991.0,99990.0,0.049331]
[1762293354517,0.200018,99991.0,99980.0,0.00018733]
[1762293354518,0.200038,99981.0,99980.0,0.00018733]
[1762293354719,0.20005509,99973.0,99970.0,0.01997567]
[1762293354904,8.52760499,100000.0,99991.0,0.200018]
[1762293354905,8.51760499,100000.0,99991.0,0.200018]
[1762293355108,8.51760499,100000.0,99998.0,0.20000399]
[1762293355321,8.51760499,100000.0,99999.0,0.37618228]
[1762293355322,8.48755677,100000.0,99999.0,0.37618228]
[1762293355526,8.45750855,100000.0,99999.0,0.37618228]
[1762293355862,8.39741211,100000.0,99999.0,0.37618228]
[1762293356069,8.36736389,100000.0,99999.0,0.37618228]
[1762293356274,7.75017439,100000.0,99999.0,0.37618228]
[1762293356490,7.59659173,100000.0,99999.0,0.37618228]
[1762293356698,7.56654351,100000.0,99999.0,0.37618228]
[1762293356903,7.53649529,100000.0,99999.0,0.37618228]
[1762293357103,7.50644707,100000.0,99999.0,0.37618228]
[1762293357308,7.50644707,100000.0,99999.0,0.48912816]
[1762293358151,7.50644707,100000.0,99999.0,0.44375166]
[1762293358354,7.50644707,100000.0,99999.0,0.45297847]
[1762293358560,7.50644707,100000.0,99999.0,0.48916075]
[1762293359592,7.50644707,100000.0,99999.0,0.51070544]
[1762293359820,7.50644707,100000.0,99999.0,0.17070544]
[1762293360230,7.40644707,100000.0,99999.0,0.13452316]
[1762293360464,7.40644707,100000.0,99999.0,0.04915994]
[1762293360640,7.60644707,100000.0,99999.0,0.03993313]
[1762293360879,7.40644707,100000.0,99999.0,0.00043956]
[1762293361476,7.40644707,100000.0,99999.0,0.2189227]
[1762293361681,7.40644707,100000.0,99999.0,0.01892045]
[1762293361881,7.40644707,100000.0,99999.0,0.01896045]
[1762293362304,7.40644707,100000.0,99999.0,0.00047956]
[1762293362511,7.40644707,100000.0,99999.0,0.01899056]
[1762293362633,7.40644707,100000.0,99999.0,0.06440811]
[1762293362839,7.40630707,100000.0,99999.0,0.06444811]
[1762293363040,6.80956466,100000.0,99999.0,0.06444811]
[1762293363246,6.80956466,100000.0,99999.0,0.17492596]
[1762293363247,6.70778034,100000.0,99999.0,0.17492596]
[1762293363489,6.67774997,100000.0,99999.0,0.09922279]
[1762293363691,6.6477196,100000.0,99999.0,0.12488759]
[1762293363838,6.61768923,100000.0,99999.0,0.12597885]
[1762293364062,6.61768923,100000.0,99999.0,0.09926279]
[1762293364261,6.61768923,100000.0,99999.0,0.02838583]
[1762293364724,6.81768923,100000.0,99999.0,0.02838583]
[1762293364925,6.61768923,100000.0,99999.0,0.01870929]
[1762293365161,6.61768923,100000.0,99999.0,0.01875843]
[1762293365335,6.61768923,100000.0,99999.0,0.02799728]
[1762293365739,6.81768923,100000.0,99999.0,0.01875843]
[1762293366053,6.61768923,100000.0,99999.0,0.01875843]
[1762293366258,6.61768923,100000.0,99999.0,0.02800288]
[1762293366473,6.61768923,100000.0,99999.0,0.06418516]
[1762293366680,6.61768923,100000.0,99999.0,0.26418716]
[1762293367302,6.61768923,100000.0,99999.0,0.02800288]
[1762293368736,6.81768923,100000.0,99999.0,0.02800288]
[1762293368943,6.81768923,100000.0,99999.0,0.00028]
[1762293369637,6.81768923,100000.0,99999.0,0.01879711]
[1762293369864,6.81768923,100000.0,99999.0,0.02805553]
[1762293369865,6.61768923,100000.0,99999.0,0.02805553]
[1762293370063,6.81768923,100000.0,99999.0,0.01879711]
[1762293370263,6.61768923,100000.0,99999.0,0.02805506]
[1762293371112,6.81768923,100000.0,99999.0,0.02805506]
[1762293371319,6.81768923,100000.0,99999.0,0.02806118]
[1762293371524,6.81768923,100000.0,99999.0,0.02806122]
[1762293371732,6.81768923,100000.0,99999.0,0.01879711]
[1762293371935,6.81768923,100000.0,99999.0,0.00028]
[1762293373554,6.81768923,100000.0,99999.0,0.01882583]
[1762293373759,6.81768923,100000.0,99999.0,0.02809834]
[1762293373760,6.61768923,100000.0,99999.0,0.02809834]
[1762293373987,6.81768923,100000.0,99999.0,0.02809834]
[1762293374196,6.81768923,100000.0,99999.0,0.01882583]
[1762293374616,6.81768923,100000.0,99999.0,0.02810635]
[1762293375039,6.81768923,100000.0,99999.0,0.01882583]
[1762293375213,8.81768923,100000.0,99998.0,0.00024]
[1762293375447,0.20003324,99984.0,99970.0,0.00018733]
[1762293375654,2.0,99990.0,99971.0,0.02135074]
[1762293375866,2.0,99990.0,99970.0,0.05292338]
[1762293375867,0.200038,99981.0,99980.0,0.00018733]
[1762293376075,0.20003,99985.0,99980.0,0.00018733]
[1762293376290,0.20003799,99982.0,99980.0,0.00018733]
[1762293376505,0.6353468,101330.0,99981.0,0.08536322]
[1762293376715,0.20003358,99984.0,99981.0,0.08536322]
[1762293376918,0.20003358,99984.0,99974.0,0.01997567]
[1762293376919,0.200038,99981.0,99974.0,0.01997567]
[1762293377117,0.2000324,99984.0,99974.0,0.01997567]
[1762293377337,0.20005601,99972.0,99970.0,0.04951833]
[1762293377545,6.40328376,100000.0,99971.0,0.02139011]
[1762293377743,6.40328376,100000.0,99987.0,0.08536322]
[1762293377949,0.200006,99997.0,99980.0,0.04951833]
[1762293378157,0.200006,99997.0,99970.0,0.01997567]
[1762293378158,0.2000361,99982.0,99974.0,0.02139011]
[1762293378351,0.20003039,99985.0,99975.0,0.02139011]
[1762293378562,0.20003488,99983.0,99971.0,0.02139011]
[1762293378715,0.03347,99999.0,99970.0,0.04951833]
[1762293378716,0.200016,99992.0,99972.0,0.02139011]
[1762293379041,0.20005401,99973.0,99964.0,0.02675606]
[1762293379278,0.20005801,99971.0,99970.0,0.00018733]
[1762293379479,0.010001,99990.0,99970.0,0.02158384]
[1762293379667,0.20005201,99974.0,99973.0,0.0267832]
[1762293379877,0.20005013,99975.0,99973.0,0.02139651]
[1762293380018,0.010001,99990.0,99980.0,0.00018733]
[1762293380398,0.20003389,99984.0,99981.0,0.10675973]
[1762293380589,6.39328376,100000.0,99990.0,0.04951833]
[1762293380732,6.39328376,100000.0,99996.0,0.08536322]
[1762293380733,6.59328419,100000.0,99996.0,0.08536322]
[1762293380963,6.39328376,100000.0,99996.0,0.08536322]
[1762293381156,0.00145636,99997.0,99996.0,0.08536322]
[1762293381396,0.00145636,99997.0,99996.0,0.0215796]
[1762293381600,0.200016,99992.0,99991.0,0.03616559]
[1762293381837,0.200016,99992.0,99991.0,0.0215813]
[1762293382911,6.39328376,100000.0,99991.0,0.0215813]
[1762293383069,6.39328376,100000.0,99999.0,0.08536322]
[1762293383268,6.59328376,100000.0,99999.0,0.10694537]
[1762293383493,6.39328376,100000.0,99999.0,0.10694537]
[1762293384092,6.39328376,100000.0,99999.0,0.02158215]
[1762293384765,6.39328376,100000.0,99999.0,0.04855878]
[1762293385066,6.30618376,100000.0,99999.0,0.02158215]
[1762293385265,6.30618376,100000.0,99999.0,0.22158415]
[1762293385482,6.30566376,100000.0,99999.0,0.22158415]
[1762293385715,6.29993818,100000.0,99999.0,0.27583254]
[1762293386193,6.29993818,100000.0,99999.0,0.22158415]
[1762293386906,6.29993818,100000.0,99999.0,0.02158215]
[1762293387178,6.29993818,100000.0,99999.0,0.0575458]
[1762293387414,6.29993818,100000.0,99999.0,0.04963255]
[1762293387661,6.30147114,100000.0,99999.0,0.24963455]